bitfinex-derivatives/quotes_SOLF0:USTF0_20240923
["timestamp","ask_amount","ask_price","bid_price","bid_amount"]
[1727055175203,1.3352,147.18,147.1,11.43]
[1727055175397,11.43,147.17,147.08,11.43]
[1727055175702,11.43,147.17,147.0,6.8022]
[1727055175703,11.43,147.15,147.06,11.43]
[1727055175900,11.43,147.16,147.06,11.43]
[1727055176105,26.0388254,147.16,147.06,11.43]
[1727055176311,26.0388254,147.16,147.08,11.43]
[1727055176312,11.43,147.16,147.08,11.43]
[1727055176606,3.3984,147.13,147.08,11.43]
[1727055177498,3.3984,147.12,147.08,11.43]
[1727055177809,2.7045,147.17,147.08,11.43]
[1727055178003,2.7045,147.17,147.1,3.3988]
[1727055179207,2.7045,147.17,147.11,3.3985]
[1727055179609,3.3981,147.14,147.11,3.3985]
[1727055179906,2.7045,147.17,147.1,3.3987]
[1727055180607,3.3981,147.14,147.1,3.3987]
[1727055181709,3.3981,147.14,147.08,11.43]
[1727055182108,3.3981,147.13,147.08,11.43]
[1727055182407,3.3981,147.13,147.1,3.3987]
[1727055183112,3.3981,147.14,147.11,3.3985]
[1727055183307,2.7045,147.17,147.08,11.43]
[1727055183907,29.56964899,147.17,147.06,11.43]
[1727055184110,17.31611148,147.17,147.06,11.43]
[1727055184310,3.3985,147.12,147.09,3.3989]
[1727055184813,3.3985,147.12,147.1,3.3988]
[1727055185011,3.3982,147.13,147.1,3.3988]
[1727055185211,29.56954362,147.17,147.1,11.43]
[1727055185514,3.3979,147.14,147.1,11.43]
[1727055185813,2.7045,147.17,147.1,14.8286]
[1727055186014,11.43,147.14,147.0,81.6]
[1727055186203,11.43,147.13,147.03,11.43]
[1727055186405,11.43,147.11,147.02,3.4007]
[1727055186610,3.3999,147.06,147.02,3.4007]
[1727055187014,3.3999,147.06,147.03,3.4004]
[1727055187212,6.83846017,147.07,147.03,3.4004]
[1727055187512,3.3996,147.07,147.04,3.4002]
[1727055188012,2.764,147.1,147.03,11.43]
[1727055188202,2.764,147.1,147.05,11.43]
[1727055188203,1.3433,147.1,147.05,11.43]
[1727055188807,4.7423,147.1,147.06,3.3997]
[1727055189007,1.3433,147.1,147.03,11.43]
[1727055190219,1.3813,147.12,147.05,11.43]
[1727055190918,11.43,147.11,147.03,11.43]
[1727055191120,14.84883249,147.11,147.01,11.43]
[1727055191318,11.43,147.09,146.99,11.43]
[1727055192020,3.3998,147.06,147.02,3.4006]
[1727055192209,3.44604708,147.09,147.03,11.43]
[1727055192414,3.3993,147.08,147.04,3.4]
[1727055192620,3.3993,147.08,147.03,11.43]
[1727055192621,6.8814064,147.08,147.03,11.43]
[1727055192825,3.3993,147.08,147.03,11.43]
[1727055193010,3.3993,147.08,147.04,3.4]
[1727055193320,1.3226,147.1,147.04,11.43]
[1727055193522,1.3226,147.1,147.05,3.3999]
[1727055193721,3.3992,147.09,147.05,3.3999]
[1727055194313,3.3992,147.09,147.06,3.3997]
[1727055196118,1.3813,147.12,147.06,11.43]
[1727055196821,3.3988,147.11,147.07,3.3994]
[1727055198119,3.399,147.1,147.07,3.3994]
[1727055198310,1.3813,147.12,147.06,3.3997]
[1727055198722,1.3813,147.12,147.05,11.43]
[1727055198917,1.3813,147.12,147.07,3.3995]
[1727055199816,26.88579821,147.15,147.08,11.43]
[1727055200211,1.411,147.16,147.1,11.43]
[1727055200418,4.8086,147.16,147.1,11.43]
[1727055200620,11.43,147.15,147.06,11.43]
[1727055200926,11.43,147.15,147.04,11.43]
[1727055201221,11.43,147.11,147.03,11.43]
[1727055201413,14.79779107,147.11,147.03,14.8303]
[1727055201618,1.3198,147.1,147.03,11.43]
[1727055202321,3.3994,147.08,147.04,3.4001]
[1727055202624,3.3994,147.08,147.03,11.43]
[1727055202830,3.3994,147.08,147.04,3.4001]
[1727055203024,3.3994,147.08,147.03,11.43]
[1727055203322,12.7498,147.1,147.0,11.43]
[1727055203521,2.6559,147.09,147.0,11.43]
[1727055203822,3.3999,147.06,147.0,11.43]
[1727055204514,3.3999,147.06,147.02,3.4005]
[1727055206421,3.4001,147.05,147.01,3.4008]
[1727055206624,11.43,147.07,146.98,11.43]
[1727055206817,11.43,147.05,146.96,11.43]
[1727055207327,1.4056,147.04,146.96,11.43]
[1727055207519,1.4056,147.04,146.98,3.4016]
[1727055207925,1.4056,147.04,146.96,11.43]
[1727055208224,3.4011,147.01,146.97,3.4018]
[1727055208726,3.4011,147.01,146.98,3.4016]
[1727055209027,6.76779072,147.01,146.96,11.43]
[1727055209223,3.36669072,147.01,146.95,11.43]
[1727055209424,2.6998,147.03,146.95,11.43]
[1727055209632,3.4016,146.99,146.95,14.8322]
[1727055211714,3.4016,146.99,146.96,3.402]
[1727055212533,3.4012,147.0,146.97,3.4018]
[1727055212734,6.15837453,147.03,146.98,11.43]
[1727055213536,3.4009,147.02,146.98,14.8315]
[1727055213737,6.15837453,147.03,146.98,11.43]
[1727055214233,3.4008,147.02,146.9,11.43]
[1727055214437,6.15837453,147.03,146.9,11.43]
[1727055214438,6.15837453,147.03,146.94,11.43]
[1727055214742,3.4015,146.99,146.95,3.4023]
[1727055215035,3.4015,146.99,146.9,14.75834845]
[1727055215036,11.43,147.02,146.92,11.43]
[1727055215222,3.4014,146.99,146.95,3.4022]
[1727055215426,11.43,147.02,146.95,3.4022]
[1727055216032,3.4017,146.98,146.95,3.4022]
[1727055216238,3.4017,146.98,146.94,3.4024]
[1727055216633,3.4017,146.98,146.92,11.43]
[1727055216831,3.4017,146.98,146.94,3.4023]
[1727055217337,11.43,147.02,146.92,14.8329]
[1727055217639,11.43,147.0,146.92,3.4029]
[1727055217841,11.43,147.0,146.93,3.4026]
[1727055218033,11.43,147.02,146.92,11.43]
[1727055218226,6.15837453,147.03,146.95,11.43]
[1727055218735,6.15837453,147.03,146.97,11.43]
[1727055219129,9.55887453,147.03,146.99,3.4012]
[1727055219935,6.15837453,147.03,147.0,3.4011]
[1727055220129,11.43,147.13,147.0,3.4011]
[1727055220130,11.43,147.09,147.0,11.43]
[1727055220330,3.3996,147.07,147.02,11.43]
[1727055220536,3.48161232,147.08,147.02,11.43]
[1727055220728,4.0993,147.09,147.02,11.43]
[1727055220930,7.4984,147.09,147.04,11.43]
[1727055221137,3.41014227,147.08,147.04,11.43]
[1727055222435,3.3984,147.12,147.03,18.28]
[1727055222630,3.3628359,147.12,147.06,18.28]
[1727055222939,3.3985,147.12,147.07,3.3994]
[1727055223136,6.74636123,147.12,147.06,18.28]
[1727055223342,3.34786123,147.12,147.06,18.28]
[1727055223529,6.1264,147.14,147.09,3.3991]
[1727055223729,2.7283,147.14,147.06,18.28]
[1727055224143,6.1262,147.14,147.06,18.28]
[1727055224329,2.7283,147.14,147.06,18.28]
[1727055224734,2.7283,147.14,147.08,3.3991]
[1727055224941,2.7283,147.14,147.06,18.28]
[1727055225129,3.3986,147.11,147.07,3.3994]
[1727055225337,3.4611198,147.12,147.07,3.3994]
[1727055225530,2.7283,147.14,147.07,3.3994]
[1727055225731,3.3984,147.12,147.07,3.3994]
[1727055225928,6.7244766,147.12,147.07,3.3994]
[1727055226140,3.3260766,147.12,147.08,3.3992]
[1727055226340,2.7283,147.14,147.06,18.28]
[1727055227238,3.3981,147.13,147.09,3.3989]
[1727055227535,2.7283,147.14,147.08,18.28]
[1727055228944,2.7283,147.14,147.12,3.3983]
[1727055229140,1.4277,147.14,147.08,18.28]
[1727055229336,18.28,147.2,147.1,18.28]
[1727055229337,2.6939,147.2,147.1,18.28]
[1727055229540,3.3971,147.18,147.14,3.3977]
[1727055229731,2.6939,147.2,147.1,21.69065233]
[1727055230147,3.3968,147.19,147.15,3.3975]
[1727055230943,3.3968,147.19,147.16,3.3974]
[1727055231132,2.6939,147.2,147.16,3.3974]
[1727055231133,6.0905,147.2,147.16,3.3974]
[1727055231335,32.84876664,147.2,147.16,3.3974]
[1727055231537,14.5537758,147.19,147.16,3.3974]
[1727055231737,3.39312559,147.21,147.15,18.28]
[1727055231936,26.75567095,147.22,147.15,18.28]
[1727055232137,14.5537758,147.21,147.18,3.3968]
[1727055232334,14.5537758,147.21,147.15,18.28]
[1727055232543,12.19849175,147.23,147.15,18.28]
[1727055232748,3.3967,147.2,147.16,3.3972]
[1727055232947,3.3967,147.2,147.13,18.28]
[1727055233349,3.3968,147.19,147.15,3.3977]
[1727055233547,1.4365,147.23,147.13,18.28]
[1727055233849,3.3966,147.2,147.16,3.3973]
[1727055234646,14.5537758,147.2,147.1,18.28]
[1727055234849,26.74893472,147.22,147.1,18.28]
[1727055235151,26.74893472,147.22,147.12,3.3983]
[1727055235351,18.28,147.2,147.08,18.28]
[1727055235651,26.74893472,147.19,147.11,3.3984]
[1727055236347,3.3978,147.15,147.11,3.3984]
[1727055236556,3.37797416,147.14,147.11,3.3984]
[1727055237143,3.37797416,147.14,147.12,3.3984]
[1727055238153,3.37797416,147.14,147.11,3.3985]
[1727055238351,6.77587416,147.14,147.11,3.3985]
[1727055238554,17.33622541,147.17,147.1,3.3988]
[1727055238754,14.54362541,147.16,147.08,18.28]
[1727055238956,6.19858374,147.17,147.08,18.28]
[1727055239356,6.19858374,147.17,147.13,3.3981]
[1727055239560,6.19858374,147.17,147.08,18.28]
[1727055239955,4.84798374,147.17,147.09,3.399]
[1727055240259,18.28,147.2,147.01,88.4217]
[1727055240260,1.4365,147.23,147.15,18.28]
[1727055240457,3.3962,147.22,147.15,18.28]
[1727055240650,1.4365,147.23,147.15,18.28]
[1727055240850,4.90255705,147.23,147.15,18.28]
[1727055241150,3.3965,147.21,147.17,3.3971]
[1727055241457,1.4365,147.23,147.13,18.28]
[1727055241757,4.77471347,147.23,147.13,18.28]
[1727055241958,1.4365,147.23,147.13,18.28]
[1727055242354,3.3965,147.21,147.17,3.3971]
[1727055245164,3.3965,147.21,147.18,3.397]
[1727055246360,3.3965,147.21,147.17,3.3971]
[1727055247158,3.3965,147.21,147.18,3.397]
[1727055247359,3.3962,147.22,147.18,3.397]
[1727055247758,4.76111309,147.23,147.15,18.28]
[1727055247963,3.3966,147.2,147.16,3.3974]
[1727055248652,11.42,147.22,147.13,11.42]
[1727055248956,11.42,147.19,147.11,11.42]
[1727055249260,2.7633,147.18,147.11,11.42]
[1727055250153,3.3976,147.16,147.12,3.3983]
[1727055250461,2.7633,147.18,147.13,11.42]
[1727055251063,2.7633,147.18,147.14,11.42]
[1727055251656,3.3976,147.16,147.12,14.8183]
[1727055251859,2.7633,147.18,147.1,11.42]
[1727055252863,3.3975,147.16,147.12,3.3984]
[1727055253061,2.7633,147.18,147.12,11.42]
[1727055253649,3.3973,147.17,147.13,3.3979]
[1727055254056,3.3973,147.17,147.12,11.42]
[1727055254566,3.3973,147.17,147.14,3.3978]
[1727055255063,6.1604,147.18,147.14,3.3978]
[1727055255457,2.7633,147.18,147.14,3.3978]
[1727055255657,6.1604,147.18,147.14,3.3978]
[1727055256264,3.3973,147.17,147.14,3.3978]
[1727055257861,6.1603,147.18,147.15,3.3976]
[1727055258064,2.7633,147.18,147.15,3.3976]
[1727055258563,6.1603,147.18,147.15,3.3976]
[1727055258775,2.7633,147.18,147.14,14.8178]
[1727055258967,2.7633,147.18,147.14,11.42]
[1727055259267,2.7633,147.18,147.12,11.42]
[1727055260064,3.3975,147.16,147.13,3.3981]
[1727055262271,3.3973,147.17,147.14,3.3979]
[1727055262656,2.7633,147.18,147.12,11.42]
[1727055263066,3.3975,147.16,147.13,3.398]
[1727055263272,2.7633,147.18,147.13,3.398]
[1727055263572,2.7633,147.18,147.12,11.42]
[1727055264582,2.7633,147.18,147.08,11.42]
[1727055264770,2.7633,147.18,147.05,3.37650642]
[1727055264771,2.7633,147.18,147.1,11.42]
[1727055265257,1.3016,147.17,147.08,11.42]
[1727055265658,11.42,147.16,147.08,11.42]
[1727055266265,11.42,147.16,147.08,3.3992]
[1727055267071,3.3985,147.12,147.08,14.8192]
[1727055267377,3.3985,147.12,147.09,3.399]
[1727055268162,3.3987,147.11,147.08,11.42]
[1727055268565,3.3987,147.11,147.03,3.48490001]
[1727055268566,3.33662086,147.13,147.06,11.42]
[1727055268868,11.42,147.16,146.96,81.58]
[1727055268869,11.42,147.1,146.96,81.58]
[1727055269176,11.42,147.1,147.01,11.42]
[1727055269579,1.3548,147.11,147.03,11.42]
[1727055270268,3.3994,147.08,147.04,3.4001]
[1727055272073,3.3994,147.08,147.05,3.3999]
[1727055272273,3.3994,147.08,147.03,11.42]
[1727055272471,1.3548,147.11,147.03,11.42]
[1727055272682,1.3548,147.11,147.04,3.4002]
[1727055272871,3.3995,147.08,147.04,3.4002]
[1727055273379,1.3548,147.11,147.04,3.4002]
[1727055273576,3.3995,147.08,147.04,3.4002]
[1727055273976,1.3548,147.11,147.05,3.3998]
[1727055274177,3.3992,147.09,147.05,3.3998]
[1727055274881,1.3548,147.11,147.06,3.3996]
[1727055275678,3.3991,147.09,147.05,3.3999]
[1727055276077,1.3548,147.11,146.97,11.42]
[1727055276275,2.7869,147.12,147.08,11.42]
[1727055276276,6.1854,147.12,147.08,11.42]
[1727055276582,3.31655557,147.13,147.08,11.42]
[1727055276784,12.7517,147.18,147.1,14.8187]
[1727055276785,3.3981,147.14,147.1,14.8187]
[1727055277081,3.48529378,147.13,147.1,11.42]
[1727055277386,3.3977,147.15,147.12,11.42]
[1727055277680,3.39276085,147.15,147.04,3.37949326]
[1727055277894,3.3987,147.11,147.07,11.42]
[1727055278074,3.34819535,147.12,147.07,11.42]
[1727055278271,11.42,147.16,147.07,11.42]
[1727055278486,11.42,147.16,147.09,3.399]
[1727055278779,2.8076,147.17,147.09,11.42]
[1727055278984,2.8076,147.17,147.11,3.3985]
[1727055279386,3.3978,147.15,147.11,3.3985]
[1727055279585,6.72456564,147.15,147.11,3.3985]
[1727055279783,3.32676564,147.15,147.14,3.3979]
[1727055279985,6.205,147.17,147.11,11.42]
[1727055280183,2.8076,147.17,147.11,11.42]
[1727055280391,2.8076,147.17,147.13,3.398]
[1727055280688,6.205,147.17,147.13,14.818]
[1727055281086,2.8076,147.17,147.14,3.3979]
[1727055281388,86.89444512,147.24,147.15,11.42]
[1727055281589,2.7124,147.23,147.17,3.3971]
[1727055281789,6.05888887,147.23,147.17,3.3971]
[1727055281985,3.3964,147.21,147.17,3.3971]
[1727055282380,6.05888887,147.23,147.19,11.42]
[1727055283292,6.05888887,147.23,147.17,11.42]
[1727055283499,3.3961,147.22,147.18,3.3968]
[1727055283793,6.05888887,147.23,147.17,11.42]
[1727055284188,3.34648887,147.23,147.17,11.42]
[1727055284390,0.74842538,147.25,147.17,11.42]
[1727055284896,3.3957,147.24,147.19,3.3966]
[1727055285794,4.1681004,147.25,147.18,3.3969]
[1727055286199,3.3959,147.23,147.18,3.3969]
[1727055286493,4.2255189,147.25,147.19,11.42]
[1727055286686,4.2255189,147.25,147.21,11.42]
[1727055287298,0.74842538,147.25,147.21,11.42]
[1727055287794,0.74842538,147.25,147.22,3.3959]
[1727055288387,0.74842538,147.25,147.23,3.3958]
[1727055288588,0.74842538,147.25,147.21,11.42]
[1727055288995,0.74842538,147.25,147.22,3.396]
[1727055289602,4.14382538,147.25,147.21,14.8162]
[1727055290090,0.74842538,147.25,147.21,11.42]
[1727055291998,0.74842538,147.25,147.23,3.3958]
[1727055292203,15.31661105,147.25,147.23,14.8158]
[1727055292501,0.74842538,147.25,147.23,14.8158]
[1727055294185,0.74842538,147.25,147.24,3.3956]
[1727055295390,0.74842538,147.25,147.23,14.8158]
[1727055296100,3.3956,147.24,147.2,3.3965]
[1727055296281,3.3956,147.24,147.2,11.42]
[1727055296701,3.3956,147.24,147.2,14.8165]
[1727055296998,3.3956,147.24,147.2,11.42]
[1727055297190,4.14382538,147.25,147.21,3.3963]
[1727055298193,4.14382538,147.25,147.23,11.42]
[1727055298493,0.74842538,147.25,147.23,11.42]
[1727055299593,0.74842538,147.25,147.23,14.8157]
[1727055303603,0.74842538,147.25,147.24,3.3956]
[1727055304506,0.74842538,147.25,147.24,14.8156]
[1727055305303,0.74842538,147.25,147.24,11.42]
[1727055306198,0.74842538,147.25,147.24,14.8156]
[1727055306402,0.74842538,147.25,147.24,11.42]
[1727055306800,0.74842538,147.25,147.21,11.42]
[1727055307098,0.74842538,147.25,147.2,11.42]
[1727055307297,0.74842538,147.25,147.21,3.3962]
[1727055307298,3.3958,147.24,147.21,3.3962]
[1727055307907,4.14392538,147.25,147.22,14.816]
[1727055308103,0.74842538,147.25,147.24,11.42]
[1727055308308,0.74842538,147.25,147.24,14.8156]
[1727055308508,0.74842538,147.25,147.24,11.42]
[1727055309009,4.14382538,147.25,147.24,11.42]
[1727055309205,0.74842538,147.25,147.24,11.42]
[1727055310407,0.74842538,147.25,147.22,11.42]
[1727055311308,0.74842538,147.25,147.23,3.3958]
[1727055311506,0.74842538,147.25,147.24,11.42]
[1727055311811,14.51113766,147.32,147.24,11.42]
[1727055312011,6.784,147.4,147.29,11.42]
[1727055312012,11.42,147.39,147.29,11.42]
[1727055312314,6.70710038,147.33,147.29,11.42]
[1727055312499,6.70710038,147.33,147.29,14.8144]
[1727055312810,4.35221848,147.34,147.29,14.8144]
[1727055313309,0.95881848,147.34,147.29,14.8144]
[1727055313612,4.38264288,147.34,147.29,14.8144]
[1727055314813,3.3935,147.33,147.29,14.8144]
[1727055315219,4.38264288,147.34,147.29,11.42]
[1727055315526,3.3941,147.31,147.29,11.42]
[1727055316517,3.3938,147.32,147.29,11.42]
[1727055318200,3.3936,147.33,147.29,14.8144]
[1727055318505,4.38264288,147.34,147.29,11.42]
[1727055319103,3.3938,147.32,147.29,11.42]
[1727055319308,4.38264288,147.34,147.29,11.42]
[1727055320718,3.3938,147.32,147.29,14.8144]
[1727055321216,3.3936,147.33,147.3,3.3942]
[1727055321418,3.3936,147.33,147.31,11.42]
[1727055323421,0.95881848,147.34,147.32,11.42]
[1727055323607,3.44168195,147.38,147.32,11.42]
[1727055323808,3.393,147.36,147.34,11.42]
[1727055324505,6.79881096,147.37,147.34,14.8133]
[1727055324707,3.3927,147.37,147.34,11.42]
[1727055325320,3.3929,147.36,147.34,11.42]
[1727055326718,3.3528056,147.37,147.31,11.42]
[1727055326914,1.3248,147.39,147.31,11.42]
[1727055327219,1.3248,147.39,147.25,81.5]
[1727055327220,11.42,147.37,147.28,11.42]
[1727055328113,14.83291944,147.37,147.28,11.42]
[1727055328421,14.83291944,147.37,147.3,11.42]
[1727055330444,3.3936,147.33,147.3,11.42]
[1727055330721,14.83291944,147.37,147.3,11.42]
[1727055330910,1.3248,147.39,147.09,7.08941731]
[1727055331112,11.42,147.28,147.01,235.2024]
[1727055331318,11.42,147.28,147.19,11.42]
[1727055331523,11.42,147.26,147.17,11.42]
[1727055331820,11.42,147.26,147.15,11.42]
[1727055332223,3.45944209,147.28,147.13,11.42]
[1727055332224,11.42,147.22,147.13,11.42]
[1727055332619,3.3977,147.15,147.13,11.42]
[1727055333124,3.3977,147.15,147.11,11.42]
[1727055333326,14.88487559,147.22,147.13,11.42]
[1727055335023,14.88487559,147.22,147.13,14.8181]
[1727055335426,3.46487559,147.22,147.13,14.8181]
[1727055335622,11.42,147.24,147.13,14.8181]
[1727055335924,11.42,147.24,147.09,3.45742656]
[1727055335925,3.4560667,147.24,147.15,11.42]
[1727055336115,2.7437,147.23,147.15,11.42]
[1727055336322,7.41050091,147.23,147.15,11.42]
[1727055336525,4.086,147.23,147.15,11.42]
[1727055336918,7.48415076,147.23,147.15,11.42]
[1727055337223,3.3969,147.19,147.15,11.42]
[1727055337628,7.48415076,147.23,147.15,11.42]
[1727055337824,3.3966,147.2,147.15,14.8175]
[1727055338023,7.48415076,147.23,147.17,11.42]
[1727055338230,3.3968,147.19,147.17,11.42]
[1727055338414,7.48415076,147.23,147.06,1.3731]
[1727055338622,7.48415076,147.23,147.15,11.42]
[1727055340125,7.48415076,147.23,147.17,11.42]
[1727055340331,3.3964,147.21,147.17,11.42]
[1727055340719,7.48415076,147.23,147.17,11.42]
[1727055341119,3.3965,147.2,147.17,11.42]
[1727055343822,3.3964,147.21,147.17,11.42]
[1727055344222,7.48415076,147.23,147.17,11.42]
[1727055344427,3.3961,147.22,147.17,14.817]
[1727055344732,7.48415076,147.23,147.17,14.817]
[1727055345140,2.6871,147.23,147.19,11.42]
[1727055345322,3.32279556,147.24,147.19,11.42]
[1727055345525,4.0819,147.29,147.19,11.42]
[1727055345723,7.40911463,147.29,147.19,11.42]
[1727055345924,11.42,147.28,147.19,11.42]
[1727055346138,11.42,147.28,147.17,11.42]
[1727055346429,11.42,147.26,147.16,11.42]
[1727055347128,11.42,147.26,147.17,11.42]
[1727055347629,25.96468862,147.28,147.17,11.42]
[1727055347835,11.42,147.28,147.17,11.42]
[1727055348037,11.42,147.28,147.19,11.42]
[1727055348233,3.3961,147.23,147.19,11.42]
[1727055348438,11.42,147.28,147.19,11.42]
[1727055349025,11.42,147.28,147.19,14.8167]
[1727055349227,11.42,147.28,147.19,11.42]
[1727055349534,3.3962,147.22,147.18,11.42]
[1727055350229,3.3962,147.22,147.18,14.8168]
[1727055351046,11.42,147.28,147.19,3.3967]
[1727055351333,11.42,147.26,147.16,11.42]
[1727055352130,3.3967,147.2,147.16,11.42]
[1727055352828,3.3967,147.2,147.16,14.8174]
[1727055353031,3.3963,147.21,147.18,11.42]
[1727055353232,14.55910276,147.28,147.2,11.42]
[1727055353531,3.3957,147.24,147.2,11.42]
[1727055353828,3.3957,147.24,147.2,14.8164]
[1727055354033,3.3958,147.23,147.2,14.8164]
[1727055354230,18.82911463,147.29,147.2,14.8164]
[1727055354629,7.40911463,147.29,147.22,11.42]
[1727055357133,3.3953,147.26,147.22,11.42]
[1727055357338,7.40911463,147.29,147.24,11.42]
[1727055357736,3.3948,147.28,147.24,14.8156]
[1727055357928,7.40911463,147.29,147.24,11.42]
[1727055358243,7.40911463,147.29,147.22,11.42]
[1727055358536,7.40911463,147.29,147.13,6.7961]
[1727055358734,7.40911463,147.29,147.23,11.42]
[1727055358928,90.25480682,147.37,147.25,11.42]
[1727055359127,30.88301437,147.36,147.29,11.42]
[1727055359338,4.1305,147.36,147.29,11.42]
[1727055359530,3.3932,147.35,147.3,3.3942]
[1727055359735,4.1305,147.36,147.29,11.42]
[1727055360235,4.1305,147.36,147.3,3.3942]
[1727055360833,3.3932,147.35,147.3,3.3942]
[1727055361233,4.1305,147.36,147.31,11.42]
[1727055362036,3.3932,147.35,147.31,11.42]
[1727055364540,3.3932,147.35,147.31,14.814]
[1727055365137,3.3933,147.34,147.31,11.42]
[1727055365332,3.4203888,147.37,147.29,11.42]
[1727055365538,17.27170319,147.39,147.29,11.42]
[1727055365737,3.3932,147.35,147.29,11.42]
[1727055365947,6.7750935,147.35,147.29,11.42]
[1727055366243,3.3932,147.35,147.31,11.42]
[1727055366447,3.3934,147.34,147.31,11.42]
[1727055366636,14.54560319,147.38,147.31,11.42]
[1727055366940,18.00390256,147.38,147.31,11.42]
[1727055367241,3.393,147.36,147.32,3.3936]
[1727055367450,18.00390256,147.38,147.33,11.42]
[1727055368443,18.00390256,147.38,147.35,3.3928]
[1727055368846,14.54560319,147.38,147.37,11.42]
[1727055369346,1.2691532,147.41,147.37,11.42]
[1727055369739,4.70228286,147.41,147.38,3.3922]
[1727055370245,1.2691532,147.41,147.39,11.42]
[1727055370843,1.2691532,147.41,147.4,3.3919]
[1727055371046,14.51480569,147.47,147.39,11.42]
[1727055371240,3.3472505,147.47,147.43,11.42]
[1727055371437,14.0688,147.52,147.42,11.42]
[1727055371851,40.73242654,147.52,147.42,11.42]
[1727055372053,26.66362654,147.51,147.42,11.42]
[1727055372247,17.93443839,147.51,147.42,11.42]
[1727055372451,3.3904,147.47,147.42,14.8114]
[1727055372853,14.85041412,147.51,147.42,11.42]
[1727055373157,3.3906,147.46,147.42,11.42]
[1727055374841,14.47243538,147.48,147.43,11.42]
[1727055375150,14.47243538,147.5,147.45,11.42]
[1727055375346,29.97078889,147.51,147.49,3.3898]
[1727055375555,1.54344222,147.53,147.47,11.42]
[1727055375947,1.54344222,147.53,147.49,11.42]
[1727055376255,1.54344222,147.53,147.43,4.145]
[1727055376451,1.54344222,147.53,147.47,11.42]
[1727055376644,3.3892,147.52,147.48,3.3899]
[1727055376849,1.54344222,147.53,147.48,3.3899]
[1727055377045,16.00004557,147.53,147.48,3.3899]
[1727055377250,1.54344222,147.53,147.48,3.3899]
[1727055377446,4.93254222,147.53,147.48,3.3899]
[1727055378053,1.54344222,147.53,147.43,4.145]
[1727055378446,1.54344222,147.53,147.43,15.565]
[1727055378656,1.54344222,147.53,147.45,11.42]
[1727055378962,3.3901,147.48,147.45,11.42]
[1727055379152,3.45465029,147.49,147.45,11.42]
[1727055379360,1.54344222,147.53,147.45,11.42]
[1727055379856,1.54344222,147.53,147.48,11.42]
[1727055380356,1.54344222,147.53,147.49,3.3896]
[1727055380659,1.54344222,147.53,147.48,14.8101]
[1727055380855,1.54344222,147.53,147.48,11.42]
[1727055381351,1.54344222,147.53,147.49,3.3897]
[1727055381546,1.54344222,147.53,147.48,11.42]
[1727055381954,4.93234222,147.53,147.48,14.8099]
[1727055382154,4.93234222,147.53,147.48,11.42]
[1727055382459,4.93234222,147.53,147.48,3.39]
[1727055383158,1.54344222,147.53,147.47,18.24]
[1727055383848,3.3893,147.52,147.48,3.3899]
[1727055384450,3.3894,147.51,147.47,3.3902]
[1727055385262,3.3892,147.52,147.48,3.3901]
[1727055385762,1.54344222,147.53,147.48,3.3901]
[1727055385964,3.3892,147.52,147.48,3.3901]
[1727055386158,1.54344222,147.53,147.48,3.3901]